fUSD/lending_fUSD_20260510
["ID","MTS","AMOUNT","RATE_DAILY","PERIOD"]
[421928158,1778343056000,-259.0,0.00038356,2]
[421928161,1778343056000,-150.0,0.00038356,5]
[421928152,1778343056000,-300.0,0.00037532,2]
[421928157,1778343056000,-3180.9057,0.00038351,2]
[421928159,1778343056000,-169.0,0.00038356,2]
[421928162,1778343056000,-250.0,0.00038359,5]
[421928165,1778343056000,-550.0,0.00038367,5]
[421928164,1778343056000,-450.0,0.00038364,5]
[421928167,1778343056000,-698.95886867,0.00038373,5]
[421928170,1778343056000,-158.54,0.00038485,120]
[421928171,1778343056000,-1112.83324815,0.00038488,2]
[421928168,1778343056000,-154.45974035,0.00038389,3]
[421928163,1778343056000,-350.0,0.00038362,5]
[421928166,1778343056000,-650.0,0.0003837,5]
[421928172,1778343056000,-2169.78438445,0.0003003,2]
[421928126,1778343056000,-3323.46291429,0.00038,120]
[421928154,1778343056000,-2379.8303949,0.00038329,120]
[421928153,1778343056000,-1120.10187113,0.00038329,120]
[421928151,1778343056000,-300.0,0.00037532,2]
[421928146,1778343056000,-751.98,0.00026243,30]
[421928140,1778343056000,-1750.5,0.00038329,120]
[421928141,1778343056000,-1750.5,0.00038329,120]
[421928142,1778343056000,-1336.5,0.00038329,120]
[421928131,1778343056000,-1886.0,0.00038329,120]
[421928132,1778343056000,-1886.0,0.00038329,120]
[421928135,1778343056000,-2028.5,0.00038329,120]
[421928136,1778343056000,-2028.5,0.00038329,120]
[421928150,1778343056000,-860.0,0.00031839,30]
[421928169,1778343056000,-414.67,0.000384,30]
[421928137,1778343056000,-1443.0,0.00038329,120]
[421928134,1778343056000,-1708.5,0.00038329,120]
[421928133,1778343056000,-1708.5,0.00038329,120]
[421928138,1778343056000,-1443.0,0.00038329,120]
[421928143,1778343056000,-216.39812887,0.00038329,120]
[421928149,1778343056000,-751.98,0.00026676,30]
[421928148,1778343056000,-751.98,0.00026532,7]
[421928145,1778343056000,-751.98,0.00026099,7]
[421928147,1778343056000,-751.98,0.00026388,2]
[421928144,1778343056000,-751.98,0.00025955,2]
[421928139,1778343056000,-2263.27673064,0.00038329,120]
[421928181,1778343057000,-2445.08745024,0.00038625,2]
[421928173,1778343057000,-1245.50561555,0.00038488,2]
[421928176,1778343057000,-231.72,0.000385,30]
[421928175,1778343057000,-3180.9057,0.00038488,2]
[421928177,1778343057000,-32795.46306422,0.000385,2]
[421928178,1778343057000,-310.546,0.000385,2]
[421928179,1778343057000,-18104.01227485,0.000385,2]
[421928174,1778343057000,-5520.1843363,0.00038488,2]
[421928182,1778343057000,-3180.9057,0.00038625,2]
[421928189,1778343057000,-401.16646909,0.00038762,2]
[421928187,1778343057000,-5544.27858499,0.00038762,2]
[421928186,1778343057000,-154.45974035,0.00038663,3]
[421928183,1778343057000,-404.48298491,0.0003863,30]
[421928184,1778343057000,-1413.51701509,0.0003863,30]
[421928185,1778343057000,-1818.0,0.0003863,60]
[421928180,1778343057000,-5433.43574976,0.00038625,2]
[421928188,1778343057000,-2334.24461501,0.00038762,2]
[421928190,1778343098000,-500.0,0.00017447,2]
[421928193,1778343152000,732.7,0.00027397,120]
[421928192,1778343152000,-501.74634363,0.00017447,2]
[421928191,1778343152000,2500.0,0.00027397,120]
[421928195,1778343181000,300.0,0.00016718,2]
[421928196,1778343197000,3398.8641,0.000273,120]
[421928197,1778343209000,455.141,0.00016385,2]
[421928199,1778343237000,446.22455501,0.000167,2]
[421928200,1778343241000,300.0,0.00016718,2]
[421928209,1778343387000,-150.0,0.00016553,2]
[421928210,1778343387000,-219.41544069,0.00016553,2]
[421928208,1778343387000,-150.53467363,0.00016553,2]
[421928211,1778343387000,-0.53467363,0.000167,2]
[421928217,1778343388000,-151.0,0.00016553,2]
[421928218,1778343388000,-218.95011432,0.00016553,2]
[421928215,1778343388000,-151.0,0.00016553,2]
[421928216,1778343388000,-218.95011432,0.00016553,2]
[421928214,1778343388000,-67.05492545,0.00016718,2]
[421928212,1778343388000,-151.89518887,0.000167,2]
[421928213,1778343388000,-151.0,0.00016706,2]
[421928220,1778343511000,717.573778,0.00026929,120]
[421928221,1778343563000,-2000.0,0.000154,2]
[421928222,1778343606000,-191.9060498,0.000154,2]
[421928223,1778343606000,-150.0,0.00015553,2]
[421928224,1778343606000,-41.9060498,0.00015707,2]
[421928227,1778343607000,-98.10839424,0.00016453,2]
[421928228,1778343607000,-93.79765556,0.00016453,21]
[421928226,1778343607000,-83.8120996,0.00016453,2]
[421928225,1778343607000,-108.0939502,0.00015707,2]
[421928229,1778343628000,-94.14334842,0.00016453,21]
[421928231,1778343671000,-150.0,0.00016553,2]
[421928232,1778343671000,-5.15055898,0.00016553,2]
[421928230,1778343671000,-155.15055898,0.00016453,21]
[421928233,1778343672000,-155.15055898,0.00016553,2]
[421928234,1778343672000,-155.15055898,0.00016553,2]
[421928235,1778343685000,360.564076,0.00026711,120]
[421928236,1778343768000,164.709108,0.0002577,120]
[421928260,1778344054000,-150.0,0.00015189,2]
[421928258,1778344054000,-176.22,0.00015161,2]
[421928255,1778344054000,-3443.51,0.00015077,2]
[421928257,1778344054000,-150.0,0.00015139,2]
[421928254,1778344054000,-321.67,0.00015069,2]
[421928256,1778344054000,-150.0,0.0001509,2]
[421928253,1778344054000,-285.79270313,0.00015066,2]
[421928251,1778344054000,-150.0,0.00015041,2]
[421928259,1778344054000,-2000.0,0.00015166,2]
[421928249,1778344054000,-150.69261961,0.00015041,2]
[421928250,1778344054000,-150.0,0.00015041,2]
[421928248,1778344054000,-150.0,0.00015041,2]
[421928247,1778344054000,-150.0,0.00015041,2]
[421928244,1778344054000,-150.0,0.00015041,2]
[421928246,1778344054000,-150.0,0.00015041,2]
[421928245,1778344054000,-150.0,0.00015041,2]
[421928243,1778344054000,-300.0,0.0001504,2]
[421928252,1778344054000,-150.0,0.00015041,2]
[421928262,1778344054000,-150.0,0.0001525,2]
[421928279,1778344054000,-150.0,0.00015631,2]
[421928263,1778344054000,-150.0,0.0001525,2]
[421928261,1778344054000,-150.0,0.00015238,2]
[421928282,1778344054000,-300.0,0.00015668,2]
[421928281,1778344054000,-150.0,0.00015668,2]
[421928280,1778344054000,-150.0,0.00015668,2]
[421928274,1778344054000,-150.0,0.00015483,2]
[421928276,1778344054000,-150.0,0.00015533,2]
[421928277,1778344054000,-150.0,0.00015582,2]
[421928275,1778344054000,-150.0,0.00015519,2]
[421928273,1778344054000,-150.0,0.00015459,2]
[421928278,1778344054000,-150.0,0.00015598,2]
[421928271,1778344054000,-150.0,0.00015434,2]
[421928270,1778344054000,-150.0,0.00015385,2]
[421928269,1778344054000,-150.0,0.00015375,2]
[421928268,1778344054000,-150.0,0.00015336,2]
[421928267,1778344054000,-11179.17,0.00015303,2]
[421928266,1778344054000,-150.0,0.00015287,2]
[421928264,1778344054000,-1852.42,0.00015268,2]
[421928265,1778344054000,-150.0,0.0001528,2]
[421928272,1778344054000,-150.0,0.00015459,2]
[421928296,1778344055000,-701.54,0.00015897,2]
[421928297,1778344055000,-150.0,0.00015926,2]
[421928299,1778344055000,-150.0,0.00015975,2]
[421928300,1778344055000,-150.0,0.00015996,2]
[421928306,1778344055000,-300.0,0.00016081,2]
[421928303,1778344055000,-1200.0,0.00016068,2]
[421928304,1778344055000,-2500.0,0.00016069,2]
[421928305,1778344055000,-150.0,0.00016073,2]
[421928298,1778344055000,-300.0,0.00015942,2]
[421928301,1778344055000,-150.0,0.00016024,2]
[421928294,1778344055000,-150.0,0.00015877,2]
[421928287,1778344055000,-150.0,0.00015757,2]
[421928293,1778344055000,-150.0,0.00015877,2]
[421928292,1778344055000,-150.0,0.00015877,2]
[421928291,1778344055000,-150.0,0.00015877,2]
[421928289,1778344055000,-150.0,0.00015828,2]
[421928290,1778344055000,-285.79270311,0.00015833,2]
[421928288,1778344055000,-150.0,0.00015778,2]
[421928284,1778344055000,-150.0,0.0001571,2]
[421928283,1778344055000,-150.0,0.0001568,2]
[421928307,1778344055000,-300.0,0.00016081,2]
[421928285,1778344055000,-150.0,0.00015729,2]
[421928286,1778344055000,-7273.020196,0.00015748,2]
[421928295,1778344055000,-500.0,0.00015877,2]
[421928308,1778344055000,-150.0,0.00016086,2]
[421928302,1778344055000,-150.0,0.00016044,2]
[421928311,1778344055000,-150.0,0.00016122,2]
[421928332,1778344055000,-151.0,0.00016394,2]
[421928333,1778344055000,-151.0,0.00016394,2]
[421928330,1778344055000,-151.0,0.00016394,2]
[421928331,1778344055000,-151.0,0.00016394,2]
[421928329,1778344055000,-151.0,0.00016394,2]
[421928328,1778344055000,-151.0,0.00016394,2]
[421928327,1778344055000,-151.0,0.00016394,2]
[421928326,1778344055000,-151.0,0.00016394,2]
[421928324,1778344055000,-164.709108,0.00016385,2]
[421928325,1778344055000,-151.0,0.00016394,2]
[421928322,1778344055000,-150.0,0.00016368,2]
[421928323,1778344055000,-150.0,0.00016378,2]
[421928320,1778344055000,-150.0,0.00016319,2]
[421928319,1778344055000,-150.0,0.00016295,2]
[421928318,1778344055000,-150.0,0.00016295,2]
[421928317,1778344055000,-150.0,0.0001627,2]
[421928316,1778344055000,-150.0,0.00016235,2]
[421928315,1778344055000,-150.0,0.00016221,2]
[421928334,1778344055000,-150.0,0.00016417,2]
[421928314,1778344055000,-150.0,0.00016172,2]
[421928313,1778344055000,-150.0,0.00016155,2]
[421928312,1778344055000,-500.0,0.00016151,2]
[421928310,1778344055000,-200.0,0.00016109,2]
[421928321,1778344055000,-2559.62900938,0.00016341,2]
[421928309,1778344055000,-150.0,0.00016086,2]
[421928336,1778344056000,-150.0,0.00016467,2]
[421928335,1778344056000,-420.0,0.0001646,2]
[421928338,1778344056000,-1320.69290758,0.00016489,2]
[421928337,1778344056000,-150.0,0.00016474,2]
[421928339,1778344056000,-858.65267195,0.00016494,2]
[421928341,1778344079000,187.38,0.00014965,2]
[421928342,1778344153000,-824.3616136,0.0001578,2]
[421928346,1778344232000,-853.6444301,0.00015649,2]
[421928347,1778344232000,-159.88,0.00015658,2]
[421928345,1778344232000,-1737.3655699,0.00015649,2]
[421928349,1778344232000,-278.19130514,0.00015764,2]
[421928348,1778344232000,-302.27,0.00015681,2]
[421928350,1778344232000,-706.01426476,0.0001578,2]
[421928389,1778344238000,-150.0,0.00016516,2]
[421928398,1778344238000,-550.0,0.00016618,2]
[421928394,1778344238000,-285.79270311,0.000166,2]
[421928396,1778344238000,-920.37443711,0.00016617,2]
[421928397,1778344238000,-3579.40447351,0.00016618,2]
[421928395,1778344238000,-150.0,0.00016614,2]
[421928392,1778344238000,-232.72583848,0.00016553,21]
[421928388,1778344238000,-150.0,0.00016503,2]
[421928385,1778344238000,-2500.0,0.00016366,2]
[421928390,1778344238000,-165.79056391,0.00016536,2]
[421928387,1778344238000,-150.0,0.00016503,2]
[421928382,1778344238000,-346.8400236,0.00015959,2]
[421928393,1778344238000,-150.0,0.00016565,2]
[421928386,1778344238000,-2500.0,0.00016366,2]
[421928383,1778344238000,-2500.0,0.00016137,2]
[421928384,1778344238000,-1200.0,0.00016365,2]
[421928381,1778344238000,-933.89412164,0.0001578,2]
[421928391,1778344238000,-384.22620767,0.00016545,2]
[421928399,1778344238000,-2000.0,0.00016619,2]
[421928415,1778344238000,-150.0,0.00016712,2]
[421928402,1778344238000,-805.133,0.00016619,2]
[421928401,1778344238000,-159.61374998,0.00016619,2]
[421928420,1778344238000,-500.0,0.00016716,2]
[421928416,1778344238000,-630.61534256,0.00016716,2]
[421928419,1778344238000,-630.61534256,0.00016716,2]
[421928418,1778344238000,-500.0,0.00016716,2]
[421928414,1778344238000,-150.0,0.00016712,2]
[421928411,1778344238000,-246.68205029,0.00016712,2]
[421928412,1778344238000,-150.0,0.00016712,2]
[421928413,1778344238000,-150.0,0.00016712,2]
[421928417,1778344238000,-455.58227849,0.00016716,2]
[421928405,1778344238000,-150.0,0.00016663,2]
[421928408,1778344238000,-150.0,0.00016712,2]
[421928406,1778344238000,-8147.0,0.00016685,2]
[421928409,1778344238000,-150.0,0.00016712,2]
[421928407,1778344238000,-174.6814165,0.00016709,2]
[421928404,1778344238000,-208.26613482,0.0001662,2]
[421928403,1778344238000,-164.464,0.00016619,2]
[421928410,1778344238000,-150.0,0.00016712,2]
[421928400,1778344238000,-10266.7191,0.00016619,2]
[421928459,1778344239000,-1006.70114008,0.00016716,2]
[421928453,1778344239000,-1006.70114008,0.00016716,2]
[421928457,1778344239000,-1006.70114008,0.00016716,2]
[421928458,1778344239000,-630.61534256,0.00016716,2]
[421928451,1778344239000,-1006.70114008,0.00016716,2]
[421928456,1778344239000,-630.61534256,0.00016716,2]
[421928454,1778344239000,-630.61534256,0.00016716,2]
[421928452,1778344239000,-630.61534256,0.00016716,2]
[421928463,1778344239000,-630.61534256,0.00016716,2]
[421928455,1778344239000,-1006.70114008,0.00016716,2]
[421928461,1778344239000,-630.61534256,0.00016716,2]
[421928472,1778344239000,-630.61534256,0.00016716,2]
[421928462,1778344239000,-1006.70114008,0.00016716,2]
[421928460,1778344239000,-1006.70114008,0.00016716,2]
[421928466,1778344239000,-1006.70114008,0.00016716,2]
[421928465,1778344239000,-630.61534256,0.00016716,2]
[421928468,1778344239000,-1006.70114008,0.00016716,2]
[421928467,1778344239000,-630.61534256,0.00016716,2]
[421928469,1778344239000,-630.61534256,0.00016716,2]
[421928470,1778344239000,-1006.70114008,0.00016716,2]
[421928450,1778344239000,-630.61534256,0.00016716,2]
[421928471,1778344239000,-1006.70114008,0.00016716,2]
[421928474,1778344239000,-1006.70114008,0.00016716,2]
[421928473,1778344239000,-1006.70114008,0.00016716,2]
[421928464,1778344239000,-1006.70114008,0.00016716,2]
[421928446,1778344239000,-630.61534256,0.00016716,2]
[421928439,1778344239000,-630.61534256,0.00016716,2]
[421928447,1778344239000,-1006.70114008,0.00016716,2]
[421928422,1778344239000,-630.61534256,0.00016716,2]
[421928423,1778344239000,-1006.70114008,0.00016716,2]
[421928425,1778344239000,-630.61534256,0.00016716,2]
[421928421,1778344239000,-1006.70114008,0.00016716,2]
[421928424,1778344239000,-267.3826074,0.00016716,2]
[421928426,1778344239000,-1006.70114008,0.00016716,2]
[421928427,1778344239000,-630.61534256,0.00016716,2]
[421928429,1778344239000,-630.61534256,0.00016716,2]
[421928431,1778344239000,-630.61534256,0.00016716,2]
[421928428,1778344239000,-1006.70114008,0.00016716,2]
[421928432,1778344239000,-1006.70114008,0.00016716,2]
[421928430,1778344239000,-1006.70114008,0.00016716,2]
[421928433,1778344239000,-630.61534256,0.00016716,2]
[421928435,1778344239000,-630.61534256,0.00016716,2]
[421928437,1778344239000,-630.61534256,0.00016716,2]
[421928434,1778344239000,-1006.70114008,0.00016716,2]
[421928436,1778344239000,-1006.70114008,0.00016716,2]
[421928440,1778344239000,-1006.70114008,0.00016716,2]
[421928475,1778344239000,-630.61534256,0.00016716,2]
[421928442,1778344239000,-630.61534256,0.00016716,2]
[421928444,1778344239000,-630.61534256,0.00016716,2]
[421928443,1778344239000,-1006.70114008,0.00016716,2]
[421928441,1778344239000,-1006.70114008,0.00016716,2]
[421928445,1778344239000,-1006.70114008,0.00016716,2]
[421928449,1778344239000,-1006.70114008,0.00016716,2]
[421928448,1778344239000,-630.61534256,0.00016716,2]
[421928477,1778344239000,-1006.70114008,0.00016716,2]
[421928438,1778344239000,-1006.70114008,0.00016716,2]
[421928478,1778344239000,-630.61534256,0.00016716,2]
[421928512,1778344239000,-630.61534256,0.00016716,2]
[421928511,1778344239000,-630.61534256,0.00016716,2]
[421928514,1778344239000,-630.61534256,0.00016716,2]
[421928510,1778344239000,-1006.70114008,0.00016716,2]
[421928509,1778344239000,-630.61534256,0.00016716,2]
[421928513,1778344239000,-1006.70114008,0.00016716,2]
[421928508,1778344239000,-1006.70114008,0.00016716,2]
[421928516,1778344239000,-630.61534256,0.00016716,2]
[421928515,1778344239000,-1006.70114008,0.00016716,2]
[421928519,1778344239000,-1006.70114008,0.00016716,2]
[421928517,1778344239000,-630.61534256,0.00016716,2]
[421928518,1778344239000,-630.61534256,0.00016716,2]
[421928521,1778344239000,-630.61534256,0.00016716,2]
[421928524,1778344239000,-630.61534256,0.00016716,2]
[421928523,1778344239000,-1006.70114008,0.00016716,2]
[421928520,1778344239000,-630.61534256,0.00016716,2]
[421928522,1778344239000,-630.61534256,0.00016716,2]
[421928526,1778344239000,-630.61534256,0.00016716,2]
[421928525,1778344239000,-1006.70114008,0.00016716,2]
[421928527,1778344239000,-1006.70114008,0.00016716,2]
[421928528,1778344239000,-4483.25934715,0.00016716,2]
[421928530,1778344239000,-4483.25934715,0.00016716,2]
[421928529,1778344239000,-4483.25934715,0.00016716,2]
[421928531,1778344239000,-4483.25934715,0.00016716,2]
[421928532,1778344239000,-4266.06637158,0.00016716,2]
[421928507,1778344239000,-1006.70114008,0.00016716,2]
[421928506,1778344239000,-1006.70114008,0.00016716,2]
[421928476,1778344239000,-1006.70114008,0.00016716,2]
[421928502,1778344239000,-630.61534256,0.00016716,2]
[421928504,1778344239000,-630.61534256,0.00016716,2]
[421928479,1778344239000,-1006.70114008,0.00016716,2]
[421928485,1778344239000,-630.61534256,0.00016716,2]
[421928483,1778344239000,-630.61534256,0.00016716,2]
[421928480,1778344239000,-1006.70114008,0.00016716,2]
[421928482,1778344239000,-1006.70114008,0.00016716,2]
[421928484,1778344239000,-1006.70114008,0.00016716,2]
[421928486,1778344239000,-1006.70114008,0.00016716,2]
[421928488,1778344239000,-1006.70114008,0.00016716,2]
[421928489,1778344239000,-630.61534256,0.00016716,2]
[421928491,1778344239000,-1006.70114008,0.00016716,2]
[421928490,1778344239000,-1006.70114008,0.00016716,2]
[421928481,1778344239000,-630.61534256,0.00016716,2]
[421928492,1778344239000,-630.61534256,0.00016716,2]
[421928487,1778344239000,-630.61534256,0.00016716,2]
[421928503,1778344239000,-1006.70114008,0.00016716,2]
[421928501,1778344239000,-1006.70114008,0.00016716,2]
[421928500,1778344239000,-630.61534256,0.00016716,2]
[421928494,1778344239000,-1006.70114008,0.00016716,2]
[421928499,1778344239000,-1006.70114008,0.00016716,2]
[421928505,1778344239000,-630.61534256,0.00016716,2]
[421928497,1778344239000,-630.61534256,0.00016716,2]
[421928496,1778344239000,-1006.70114008,0.00016716,2]
[421928495,1778344239000,-630.61534256,0.00016716,2]
[421928493,1778344239000,-630.61534256,0.00016716,2]
[421928498,1778344239000,-630.61534256,0.00016716,2]
[421928551,1778344241000,-4483.25934715,0.00016716,2]
[421928550,1778344241000,-1423.83737669,0.00016716,2]
[421928553,1778344241000,-1423.83737669,0.00016716,2]
[421928549,1778344241000,-4483.25934715,0.00016716,2]
[421928547,1778344241000,-4483.25934715,0.00016716,2]
[421928542,1778344241000,-3223.84148903,0.00016716,2]
[421928543,1778344241000,-1259.41785812,0.00016716,2]
[421928541,1778344241000,-4483.25934715,0.00016716,2]
[421928540,1778344241000,-4483.25934715,0.00016716,2]
[421928539,1778344241000,-217.19297557,0.00016716,2]
[421928545,1778344241000,-1423.83737669,0.00016716,2]
[421928548,1778344241000,-1423.83737669,0.00016716,2]
[421928558,1778344241000,-1423.83737669,0.00016716,2]
[421928556,1778344241000,-4483.25934715,0.00016716,2]
[421928554,1778344241000,-4483.25934715,0.00016716,2]
[421928568,1778344241000,-4483.25934715,0.00016716,2]
[421928567,1778344241000,-1423.83737669,0.00016716,2]
[421928564,1778344241000,-4483.25934715,0.00016716,2]
[421928563,1778344241000,-1423.83737669,0.00016716,2]
[421928560,1778344241000,-4483.25934715,0.00016716,2]
[421928561,1778344241000,-1423.83737669,0.00016716,2]
[421928557,1778344241000,-1423.83737669,0.00016716,2]
[421928559,1778344241000,-4483.25934715,0.00016716,2]
[421928555,1778344241000,-1423.83737669,0.00016716,2]
[421928562,1778344241000,-4483.25934715,0.00016716,2]
[421928580,1778344242000,-4483.25934715,0.00016716,2]
[421928585,1778344242000,-1423.83737669,0.00016716,2]
[421928587,1778344242000,-4483.25934715,0.00016716,2]
[421928583,1778344242000,-1423.83737669,0.00016716,2]
[421928581,1778344242000,-1423.83737669,0.00016716,2]
[421928582,1778344242000,-4483.25934715,0.00016716,2]
[421928579,1778344242000,-1423.83737669,0.00016716,2]
[421928578,1778344242000,-4483.25934715,0.00016716,2]
[421928572,1778344242000,-1423.83737669,0.00016716,2]
[421928577,1778344242000,-1423.83737669,0.00016716,2]
[421928573,1778344242000,-4483.25934715,0.00016716,2]
[421928575,1778344242000,-1423.83737669,0.00016716,2]
[421928574,1778344242000,-4483.25934715,0.00016716,2]
[421928571,1778344242000,-1423.83737669,0.00016716,2]
[421928569,1778344242000,-1423.83737669,0.00016716,2]
[421928586,1778344242000,-4483.25934715,0.00016716,2]
[421928576,1778344242000,-4483.25934715,0.00016716,2]
[421928588,1778344242000,-1423.83737669,0.00016716,2]
[421928570,1778344242000,-4483.25934715,0.00016716,2]
[421928589,1778344242000,-1423.83737669,0.00016716,2]
[421928590,1778344242000,-4483.25934715,0.00016716,2]
[421928608,1778344242000,-380.52932165,0.00016716,2]
[421928607,1778344242000,-530.6639789,0.00016716,2]
[421928605,1778344242000,-4483.25934713,0.00016716,2]
[421928606,1778344242000,-1423.8373767,0.00016716,2]
[421928604,1778344242000,-4483.25934713,0.00016716,2]
[421928601,1778344242000,-1423.83737669,0.00016716,2]
[421928599,1778344242000,-1423.83737669,0.00016716,2]
[421928603,1778344242000,-1423.83737669,0.00016716,2]
[421928602,1778344242000,-1423.83737669,0.00016716,2]
[421928584,1778344242000,-4483.25934715,0.00016716,2]
[421928598,1778344242000,-1423.83737669,0.00016716,2]
[421928595,1778344242000,-4483.25934715,0.00016716,2]
[421928597,1778344242000,-1423.83737669,0.00016716,2]
[421928596,1778344242000,-1423.83737669,0.00016716,2]
[421928594,1778344242000,-333.53009678,0.00016716,2]
[421928593,1778344242000,-1090.30727991,0.00016716,2]
[421928600,1778344242000,-1423.83737669,0.00016716,2]
[421928591,1778344242000,-1423.83737669,0.00016716,2]
[421928592,1778344242000,-4483.25934715,0.00016716,2]
[421928618,1778344243000,-512.64407615,0.00016716,2]
[421928617,1778344243000,-29218.68,0.0001569,2]
[421928619,1778344243000,-1423.8373767,0.00016716,2]
[421928621,1778344243000,-232.07477588,0.00016718,2]
[421928620,1778344243000,-537.53221972,0.00016717,2]
[421928622,1778344243000,-612.45539407,0.00016718,2]
[421928639,1778344244000,-151.0,0.00016719,2]
[421928640,1778344244000,-151.0,0.00016719,2]
[421928633,1778344244000,-500.0,0.00016718,2]
[421928638,1778344244000,-150.0,0.00016719,2]
[421928635,1778344244000,-164.0,0.00016719,2]
[421928642,1778344244000,-151.0,0.00016719,2]
[421928634,1778344244000,-205.82,0.00016718,2]
[421928636,1778344244000,-150.0,0.00016719,2]
[421928625,1778344244000,-509.58359141,0.00016718,2]
[421928631,1778344244000,-500.0,0.00016718,2]
[421928627,1778344244000,-500.0,0.00016718,2]
[421928629,1778344244000,-1008.81748156,0.00016718,5]
[421928628,1778344244000,-500.0,0.00016718,2]
[421928641,1778344244000,-152.0,0.00016719,2]
[421928624,1778344244000,-450.80514105,0.00016718,2]
[421928626,1778344244000,-331.8139513,0.00016718,2]
[421928623,1778344244000,-288.69960006,0.00016718,2]
[421928632,1778344244000,-500.0,0.00016718,2]
[421928643,1778344244000,-150.0,0.00016719,2]
[421928630,1778344244000,-500.0,0.00016718,2]
[421928644,1778344244000,-150.0,0.00016719,2]
[421928645,1778344244000,-202151.8241226,0.00016719,2]
[421928667,1778344244000,-19873.10938771,0.00017223,2]
[421928665,1778344244000,-257.14612861,0.00017219,5]
[421928666,1778344244000,-363.89198984,0.00017219,5]
[421928664,1778344244000,-2000.0,0.00017062,2]
[421928663,1778344244000,-280.37082092,0.00017,2]
[421928660,1778344244000,-500.0,0.00017,2]
[421928662,1778344244000,-150.0,0.00017,2]
[421928661,1778344244000,-160.77479797,0.00017,2]
[421928637,1778344244000,-152.0,0.00016719,2]
[421928657,1778344244000,-150.0,0.00017,2]
[421928659,1778344244000,-500.0,0.00017,2]
[421928646,1778344244000,-110853.72146892,0.00016719,2]
[421928648,1778344244000,-882450.05925598,0.00016719,2]
[421928650,1778344244000,-52265.5591168,0.00016719,2]
[421928647,1778344244000,-1252278.8360357,0.00016719,2]
[421928656,1778344244000,-159.66,0.000168,2]
[421928654,1778344244000,-166.69,0.0001672,2]
[421928658,1778344244000,-183.92105499,0.00017,2]
[421928652,1778344244000,-150.0,0.00016719,2]
[421928671,1778344246000,-250.0,0.00017224,2]
[421928670,1778344246000,-300.0,0.00017224,2]
[421928668,1778344246000,-264.08,0.00016706,3]
[421928669,1778344246000,-2821.43061229,0.00017223,2]
[421928672,1778344246000,-403.50230477,0.00017258,2]
[421928678,1778344257000,-174.6814165,0.00017338,2]
[421928677,1778344257000,-161.98660386,0.00017258,2]
[421928676,1778344257000,-2009.53678273,0.00017258,2]
[421928680,1778344257000,-1498.7492079,0.00017348,2]
[421928681,1778344257000,-8600.16096363,0.00017348,2]
[421928682,1778344257000,-2682.7812,0.00017348,2]
[421928683,1778344257000,-113053.09285426,0.00017348,2]
[421928684,1778344257000,997.84427232,0.00017258,2]
[421928685,1778344257000,7058.93757113,0.0001662,2]
[421928679,1778344257000,-287.68687467,0.00017347,2]
[421928686,1778344261000,300.0,0.00017347,2]
[421928687,1778344261000,1643.22815655,0.0001709,2]
[421928689,1778344261000,6107.01306315,0.0001709,2]
[421928688,1778344261000,10000.01,0.0001709,2]
[421928690,1778344265000,151.0,0.00017345,2]
[421928691,1778344266000,151.0,0.00017345,2]
[421928692,1778344268000,3590.99693685,0.00016519,2]
[421928693,1778344268000,10000.01,0.00016519,2]
[421928694,1778344268000,10000.01,0.00016519,2]
[421928695,1778344268000,10000.01,0.00016519,2]
[421928697,1778344545000,153.92,0.00013701,2]
[421928699,1778344713000,2596.81441508,0.00027397,120]
[421928700,1778344727000,3000.0,0.00027397,120]
[421928706,1778344946000,250.0,0.00014,2]
[421928710,1778345145000,287.05,0.00027302,120]
[421928712,1778345363000,-346.8400236,0.00015371,2]
[421928717,1778345363000,-200.0,0.00015647,2]
[421928719,1778345363000,-16.89595888,0.00015732,2]
[421928718,1778345363000,-232.72583848,0.00015656,21]
[421928716,1778345363000,-1345.27,0.00015603,2]
[421928714,1778345363000,-1000.0,0.00015443,2]
[421928715,1778345363000,-171.65,0.00015477,2]